Cogmind - Beta 14 @@@ ROGUE MODE // 2025.01.16 @ 00:34:10 Player: Mathewnd Result: Destroyed by S-43 Plague with Heavy Machine Gun Performance ------------- Evolutions (9) 4500 Regions Visited (22) 4400 Robots Destroyed (371) 1855 Value Destroyed (16906) 16906 Prototype IDs (13) 260 Alien Tech Used (0) 0 Bonus (11652) 11652 TOTAL SCORE: 39573 Bonus ------- High Alert Combat Kills 4298 Follower Combat Kills 2160 Network Hubs Disabled 400 Met Warlord at Base 500 MAIN.C Attacked Warlord 500 Built Enhanced Grunts 300 A7 Reached Mainframe 300 Met R17 at Cetus 500 Met R17 at Research 2000 Met Warlord at Research 2000 Friendly Fire -1306 Cogmind --------- Core Integrity 0/1600 Matter 36/300 Energy 99/100 System Corruption 35% Temperature Cool (0) Movement Core (50) Location -1/Access Parts ------- > --- POWER (3) -------- (None) > --- PROPULSION (6) --- (None) > --- UTILITY (10) ----- (None) > --- WEAPON (6) ------- (None) > --- INVENTORY (5) ---- Enhanced Armored Heavy Treads Huge Storage Unit Large Matter Pod (0) Remote Datajack Peak State ------------ > --- POWER ------------ Antimatter Reactor Quantum Reactor Light Quantum Reactor > --- PROPULSION ------- Biometal Heavy Treads Advanced Heavy Siege Treads Advanced Heavy Siege Treads > --- UTILITY ---------- Advanced Heat Sink Advanced Heat Sink Huge Storage Unit Improved Signal Interpreter Improved Armor Integrity Analyzer Improved Weapon Cycler Centrium Medium Armor Plating Centrium Medium Armor Plating Improved Focal Shield Advanced Force Field > --- WEAPON ----------- Enhanced Quantum Rifle Coil Gun Heavy Machine Gun KE Penetrator Railgun Helical Railgun > --- INVENTORY -------- Particle Reactor Quantum Reactor Armored Heavy Treads Improved Heavy Siege Treads Improved Heavy Siege Treads Improved Heavy Siege Treads Advanced Heavy Siege Treads Large Matter Pod High-capacity Matter Pod Advanced Sensor Array Centrium Medium Armor Plating Heavy Battle Rifle Heavy Battle Rifle Heavy Machine Gun KE Penetrator Mini Grenade Launcher Micro-nuke Launcher Remote Datajack [Rating: 193] Favorites ----------- Power Quantum Reactor Engine Heavy Ion Engine Reactor Quantum Reactor Propulsion Light Treads Treads Light Treads Utility Improved Signal Interpreter Device Advanced Heat Sink Storage High-capacity Storage Unit Processor Improved Signal Interpreter Protection Powered Armor Weapon Enhanced Autogun Energy Gun Field Laser Energy Cannon Neutron Cannon Ballistic Gun Enhanced Autogun Launcher Mini Grenade Launcher Build | -11 -10 -10 -9 -9 -8 -7 -7 -6 -6 -6 -6 -6 -5 -4 -4 -4 -4 -3 -3 -3 -2 -1 ------- Run | Yrd Mat Min Mat Min Mat Fac Sto Fac Ext Cet Arc Hub Fac Fac Upp Upp War Pro Res Tes Res Acc Slots Evolved 18 | . . . 2 . 2 2 . 2 . . . . 2 2 . . . . 2 . 2 2 Power 2 | . . . . . . 1 . . . . . . . . . . . . . . 1 . Propulsion 4 | . . . 1 . 1 . . 1 . . . . 1 . . . . . . . . . Utility 8 | . . . 1 . . 1 . 1 . . . . . 2 . . . . 1 . 1 1 Weapon 4 | . . . . . 1 . . . . . . . 1 . . . . . 1 . . 1 Parts Attached 286 | 7 6 1 14 2 30 16 7 9 23 12 2 15 21 6 7 . 4 8 10 22 16 48 Power 26 | 1 1 . 1 . 3 1 . 1 1 2 . . . . 1 . 1 1 . 3 2 7 Engine 9 | 1 1 . 1 . 3 1 . 1 1 . . . . . . . . . . . . . Core . | . . . . . . . . . . . . . . . . . . . . . . . Reactor 17 | . . . . . . . . . . 2 . . . . 1 . 1 1 . 3 2 7 Propulsion 85 | 2 . 1 8 . 10 3 6 4 10 . . 7 6 2 . . 3 3 . 7 5 8 Treads 85 | 2 . 1 8 . 10 3 6 4 10 . . 7 6 2 . . 3 3 . 7 5 8 Leg . | . . . . . . . . . . . . . . . . . . . . . . . Wheel . | . . . . . . . . . . . . . . . . . . . . . . . Hover . | . . . . . . . . . . . . . . . . . . . . . . . Flight . | . . . . . . . . . . . . . . . . . . . . . . . Utility 95 | 1 2 . 3 2 6 10 1 4 2 6 2 6 10 4 5 . . 4 7 5 3 12 Device 54 | . 1 . . 2 2 4 . 2 1 3 1 3 8 2 5 . . 4 3 4 2 7 Storage 3 | 1 . . 1 . . . . . . . . . . . . . . . 1 . . . Processor 6 | . . . . . . 2 . 1 . . . . . 1 . . . . 1 . . 1 Hackware . | . . . . . . . . . . . . . . . . . . . . . . . Protection 32 | . 1 . 2 . 4 4 1 1 1 3 1 3 2 1 . . . . 2 1 1 4 Artifact . | . . . . . . . . . . . . . . . . . . . . . . . Weapon 80 | 3 3 . 2 . 11 2 . . 10 4 . 2 5 . 1 . . . 3 7 6 21 Energy Gun 14 | 3 1 . 2 . . . . . . . . . . . . . . . . 1 1 6 Energy Cannon 1 | . . . . . . . . . . 1 . . . . . . . . . . . . Ballistic Gun 53 | . 2 . . . 10 1 . . 8 3 . 2 4 . 1 . . . 3 6 4 9 Ballistic Cannon . | . . . . . . . . . . . . . . . . . . . . . . . Launcher 12 | . . . . . 1 1 . . 2 . . . 1 . . . . . . . 1 6 Special Weapon . | . . . . . . . . . . . . . . . . . . . . . . . Impact Weapon . | . . . . . . . . . . . . . . . . . . . . . . . Slashing Weapon . | . . . . . . . . . . . . . . . . . . . . . . . Piercing Weapon . | . . . . . . . . . . . . . . . . . . . . . . . Special Melee Weapon . | . . . . . . . . . . . . . . . . . . . . . . . Unidentified Prototypes 13 | . . . . 1 4 . . . . 3 1 1 . . . . . . . 1 1 1 Corrupted Parts 4 | . . . . . . . . . . . . 3 . . . . . . . . 1 . System Corruption 24 | . . . . . . . . . . . . 14 . . . . . . . . 10 . Parts Lost 101 | . 1 1 2 1 10 1 3 . 5 2 . 6 . 1 . . . 1 3 17 1 46 Power 16 | . . . 1 . 2 . . . 1 . . . . . . . . . . 3 . 9 Propulsion 29 | . . 1 . . 3 1 2 . . . . 6 . 1 . . . . . 5 1 9 Utility 22 | . . . 1 1 2 . 1 . 1 2 . . . . . . . 1 . 2 . 11 Weapon 34 | . 1 . . . 3 . . . 3 . . . . . . . . . 3 7 . 17 Highest Loss Streak 15 | . 1 1 1 1 2 1 1 . 2 2 . 2 . 1 . . . 1 1 5 1 15 To Critical Strikes 3 | . . . . . 1 . . . 1 . . . . . . . . . . 1 . . Average Slot Usage (%) 94 | . 94 100 97 97 99 99 99 100 98 99 100 99 93 94 94 94 94 93 94 95 86 66 Engine 5 | . 14 14 10 11 9 15 15 13 12 1 . . . . . . . . . . . . Reactor 5 | . . . . . . . . . . 11 13 13 11 10 10 10 10 10 9 8 9 8 Treads 28 | . 28 28 32 33 35 29 29 33 33 33 33 32 29 26 26 26 26 26 23 24 18 11 Device 10 | . 4 14 11 11 8 4 . 6 . 6 6 10 8 14 15 15 15 14 16 15 19 15 Storage 6 | . 14 14 11 11 9 7 7 6 6 6 6 6 5 5 5 5 5 5 4 4 4 3 Processor 9 | . . . . . . 9 15 13 13 13 13 13 11 15 15 15 15 15 14 14 11 6 Protection 5 | . 4 . 9 8 9 7 7 6 12 5 5 2 1 . . . . . 2 2 1 2 Energy Gun 3 | . 14 . 20 22 3 . . . . . . . . . . . . . . 1 2 2 Ballistic Gun 17 | . 13 28 1 . 23 22 23 20 18 18 20 20 22 21 21 21 21 21 22 21 17 14 Peak Build Rating 193 | 6 9 9 18 28 37 44 44 54 55 76 76 93 117 128 127 126 126 126 144 145 179 193 Average Rating 80 | 4 7 8 15 17 30 43 43 50 50 70 76 74 107 123 125 126 121 124 138 129 146 148 On Entrance 74 | . 6 9 9 18 18 37 44 43 54 55 76 76 93 117 128 126 126 121 126 136 112 179 Naked Turns 61 | . . . . . . . . . . . . . . . . . . . . . . 61 Heaviest Build 198 | 12 14 14 57 57 87 86 76 79 88 108 100 102 110 111 106 106 106 106 163 164 185 198 Greatest Support 235 | 40 40 40 60 60 80 80 80 108 118 118 118 161 191 191 188 188 191 191 188 188 235 235 Greatest Overweight (x) 1 | . . . . . 1 1 . . . . . 1 . . . . . . 1 1 . . Average Overweight (x) . | . . . . . . . . . . . . . . . . . . . . . . . Largest Inventory Capacity 25 | 8 8 8 20 20 20 20 20 20 20 20 20 20 20 20 20 20 20 20 25 25 25 25 Average Capacity 19 | 6 8 8 10 20 20 20 20 20 20 20 20 20 20 20 20 20 20 20 22 25 25 24 Most Carried 25 | 7 8 8 13 16 20 20 20 20 20 20 20 20 20 19 20 20 20 20 25 25 25 25 Average Carried 17 | 4 7 6 8 13 19 19 19 19 19 19 20 19 19 18 19 20 20 19 21 20 20 17 Final Capacity 25 | 8 8 8 20 20 20 20 20 20 20 20 20 20 20 20 20 20 20 20 25 25 25 25 Final Carried 25 | 6 8 6 13 15 20 20 19 20 20 20 20 20 20 19 20 20 20 20 25 23 25 25 Class Distribution -------------------- 30% | Scavenger-Skirmisher 19% | Scavenger-Tank 12% | Scavenger-Mutant 10% | Scavenger-Gunner 7% | Tank 5% | Mutant 4% | Commander-Tank 4% | Scavenger-Executioner Dominant Class ---------------- Mutant | -10/Materials Mutant | -10/Mines Scavenger-Mutant | -9/Materials Scavenger-Mutant | -9/Mines Tank | -8/Materials Scavenger-Skirmisher | -7/Factory Commander-Gunner | -7/Storage Scavenger-Skirmisher | -6/Factory Scavenger-Tank | -6/Extension Commander-Tank | -6/Cetus Scavenger-Gunner | -6/Archives Scavenger-Skirmisher | -6/Hub_04(d) Scavenger-Skirmisher | -5/Factory Scavenger-Skirmisher | -4/Factory Scavenger-Skirmisher | -4/Upper Caves Scavenger-Skirmisher | -4/Upper Caves Scavenger-Skirmisher | -4/Warlord Scavenger-Skirmisher | -3/Proximity Caves Scavenger-Tank | -3/Research Scavenger-Tank | -3/Testing Scavenger-Tank | -2/Research Scavenger-Executioner | -1/Access Resources | -11 -10 -10 -9 -9 -8 -7 -7 -6 -6 -6 -6 -6 -5 -4 -4 -4 -4 -3 -3 -3 -2 -1 ----------- Run | Yrd Mat Min Mat Min Mat Fac Sto Fac Ext Cet Arc Hub Fac Fac Upp Upp War Pro Res Tes Res Acc Matter Collected 14180 | 219 156 53 352 35 1443 449 1143 211 1279 392 68 426 613 82 222 130 . 518 988 2525 545 2331 Remotely . | . . . . . . . . . . . . . . . . . . . . . . . Salvage Created 20665 | . 475 164 1149 91 2288 574 1240 188 980 261 . 926 1018 172 190 235 . 573 942 4761 461 3977 Parts 958 | . 33 12 62 6 106 45 65 11 32 6 . 31 55 11 . 13 . 32 54 213 24 147 Haulers Intercepted 23 | . 1 . 4 . 6 1 3 1 . . . 5 . . . . . . . 1 . 1 Recyclers Shooed 7 | . 1 . 1 . 3 . . . 1 . . . . . . . . . . 1 . . Parts Field Recycled . | . . . . . . . . . . . . . . . . . . . . . . . Retrieved Matter . | . . . . . . . . . . . . . . . . . . . . . . . Parts Self-Destructed 31 | . . . . . . . . . . . . . . . . 7 . 24 . . . . Prevented . | . . . . . . . . . . . . . . . . . . . . . . . Kills | -11 -10 -10 -9 -9 -8 -7 -7 -6 -6 -6 -6 -6 -5 -4 -4 -4 -4 -3 -3 -3 -2 -1 ------- Run | Yrd Mat Min Mat Min Mat Fac Sto Fac Ext Cet Arc Hub Fac Fac Upp Upp War Pro Res Tes Res Acc Combat Hostiles Destroyed 293 | . 12 4 19 2 36 10 21 1 18 4 . 4 18 2 . 1 . 5 11 50 5 70 Guns 260 | . 12 4 19 2 35 8 21 1 18 4 . 4 13 2 . 1 . 5 11 50 5 45 AOE 32 | . . . . . . 2 . . . . . . 5 . . . . . . . . 25 Classes Destroyed 18 | . 5 . 5 . 2 2 . . . . . . 1 . . 1 . . . 1 1 . Worker 18 | . . . 2 2 2 2 1 1 . . . 2 1 . . . . . . 4 . 1 Builder 14 | . . . . . 3 1 1 . . . . 1 . . . . . . . 4 . 4 Tunneler 6 | . . . 2 . . 3 . . . . . . . . . . . . 1 . . . Hauler 23 | . 1 . 4 . 6 1 3 1 . . . 5 . . . . . . . 1 . 1 Recycler 7 | . 1 . 1 . 3 . . . . . . . . . . . . . . 2 . . Mechanic 3 | . . . . . . . . . . . . . . . . . . . . 2 . 1 Operator 5 | . . . 1 . 3 . 1 . . . . . . . . . . . . . . . Watcher 18 | . 1 . 4 . 4 1 2 1 . . . 2 2 . . . . . . 1 . . Swarmer 45 | . 6 . 5 . 3 3 4 . 1 . . . 4 . . . . . . 3 . 16 Saboteur 1 | . . . . . . . . . . . . . 1 . . . . . . . . . Grunt 142 | . 6 4 10 1 24 3 13 . 11 . . 1 3 . . . . 1 2 30 4 29 Brawler 8 | . . . 1 1 3 1 . . . . . . . . . . . . . . . 2 Duelist 7 | . . . . . . 1 . . 1 . . 1 2 . . . . . . . . 2 Sentry 23 | . . . 3 . 5 . 3 1 3 . . 1 2 1 . . . . 2 1 . 1 Hunter 26 | . . . . . 1 1 . . 1 . . . . 1 . . . 4 6 4 . 8 Programmer 35 | . . . . . . 1 1 . . . . 1 6 . . 1 . . 1 12 . 12 Cetus Guard 4 | . . . . . . . . . . 4 . . . . . . . . . . . . Enhanced Grunt 2 | . . . . . . . . . . . . 1 1 . . . . . . . . . Striker 1 | . . . . . . . . . . . . . . . . . . . . . 1 . Samaritan 6 | . . . . . . . . . . . . . . . . 3 . 3 . . . . Thug 1 | . . . . . . . . . 1 . . . . . . . . . . . . . Guerrilla 1 | . . . . . . . . . . . . 1 . . . . . . . . . . Best Kill Streak 12 | . 7 2 5 2 6 5 5 1 4 3 . 6 5 2 . 1 . 3 4 7 2 12 Combat Bots Only 9 | . 4 2 4 2 4 3 4 1 4 3 . 2 5 2 . 1 . 3 4 7 2 9 Max Kills in Single Turn 4 | . 1 1 1 1 2 2 1 1 1 1 . 4 3 2 . 1 . 1 2 2 1 4 Gunslinging 1 | . . . . . 1 . . . . . . . . 1 . . . . 1 1 . 1 Exploded 3 | . . . . . . 1 . . . . . . 2 . . . . . . . . 3 Melee . | . . . . . . . . . . . . . . . . . . . . . . . Uniques/NPCs Destroyed . | . . . . . . . . . . . . . . . . . . . . . . . Combat | -11 -10 -10 -9 -9 -8 -7 -7 -6 -6 -6 -6 -6 -5 -4 -4 -4 -4 -3 -3 -3 -2 -1 -------- Run | Yrd Mat Min Mat Min Mat Fac Sto Fac Ext Cet Arc Hub Fac Fac Upp Upp War Pro Res Tes Res Acc Hostile Shots Fired 2232 | . 63 16 92 5 146 38 74 9 198 43 7 47 55 13 . 2 12 54 118 289 56 895 Missed 558 | . 18 7 28 . 34 11 24 3 61 14 1 16 13 2 . . 6 14 28 64 14 200 Damage Taken 28501 | . 497 128 715 57 1769 360 885 41 1343 599 147 546 867 232 . 38 132 508 1329 3393 753 14162 Core 2518 | . 77 . 101 11 144 34 16 . 100 18 . 53 64 . . . 18 . 40 104 115 1623 Absorbed by Shields 4089 | . . . . . 36 . . . 400 145 . . 41 . . . . 141 433 1375 559 959 Reduced by Siege Mode 2175 | . . . . . . . . . . . . . 25 5 . . . 53 21 51 31 1989 Redirected to Shielding 6 | . 6 . . . . . . . . . . . . . . . . . . . . . Ignored by Resistances 1365 | . . . . . 16 . . . . . . . . . . . . . . . 90 1259 Regen/Repaired (Parts) 144 | . . . . . . . . . . . . . . . . . 144 . . . . . Core Remaining (%) 85 | 100 . 69 . 72 73 . 92 . . . . 79 93 . . . . 98 . 88 92 . Volleys Fired 915 | . 51 12 81 6 131 35 66 10 75 30 4 27 31 3 . 7 . 25 33 105 16 167 Largest 6 | . 2 2 2 2 3 3 3 3 3 3 3 3 4 4 . 4 . 4 5 5 5 6 Hottest 291 | . 60 40 126 126 149 75 75 75 78 90 83 90 136 136 . 138 . 138 185 201 193 291 Shots Fired 2847 | . 99 24 162 12 367 100 199 30 200 72 12 82 119 12 . 28 . 100 152 497 69 511 Gun 2787 | . 99 24 162 12 367 97 199 30 194 63 12 82 117 12 . 28 . 100 152 497 69 471 Cannon 9 | . . . . . . . . . . 9 . . . . . . . . . . . . Launcher 51 | . . . . . . 3 . . 6 . . . 2 . . . . . . . . 40 Special . | . . . . . . . . . . . . . . . . . . . . . . . Kinetic 2369 | . 52 24 2 . 306 97 199 30 194 63 12 82 117 12 . 28 . 100 152 476 64 359 Thermal 396 | . 37 . 160 12 61 . . . . 9 . . . . . . . . . . 5 112 Explosive 51 | . . . . . . 3 . . 6 . . . 2 . . . . . . . . 40 Electromagnetic 31 | . 10 . . . . . . . . . . . . . . . . . . 21 . . Robot Hit Streak 40 | . 8 6 12 3 13 6 13 13 18 9 4 8 13 4 . 10 . 15 10 28 9 40 Robot Miss Streak 9 | . 7 3 3 3 7 5 6 5 4 4 2 4 4 1 . 1 . 2 9 8 2 6 Penetration Max 4 | . . . . . . . . . 1 1 . 1 1 . . . . . 2 4 2 1 Secondary Targets 52 | . 1 . . . 6 2 2 . 2 2 . . 3 1 . . . 1 1 15 . 16 Max Gunslinging Chain 1 | . 1 . . . 1 1 1 . 1 1 . . 1 1 . . . 1 1 1 . 1 Shots Hit Robots 1794 | . 59 15 90 6 236 51 122 15 138 45 8 41 68 9 . 21 . 47 88 327 49 359 Core Hits 881 | . 26 8 40 3 99 35 52 9 59 17 2 31 39 4 1 8 . 19 39 156 18 216 Critical Kills 64 | . . 1 . . 2 . 1 . 1 2 . . 6 1 . . . 5 6 31 1 7 Critical Parts Destroyed 72 | . 1 . . . 2 . . . 1 1 . . 6 . . 1 . 4 5 39 1 11 Critical Strikes 145 | . 1 1 3 . 5 . 1 . 3 3 . . 13 2 . 1 . 9 12 70 2 19 Burn 5 | . . . 3 . 1 . . . . . . . . . . . . . . . . 1 Destroy 140 | . 1 1 . . 4 . 1 . 3 3 . . 13 2 . 1 . 9 12 70 2 18 Melee Attacks . | . . . . . . . . . . . . . . . . . . . . . . . Impact . | . . . . . . . . . . . . . . . . . . . . . . . Slashing . | . . . . . . . . . . . . . . . . . . . . . . . Piercing . | . . . . . . . . . . . . . . . . . . . . . . . Sneak Attacks . | . . . . . . . . . . . . . . . . . . . . . . . Combat Hostiles . | . . . . . . . . . . . . . . . . . . . . . . . Follow-up Attacks . | . . . . . . . . . . . . . . . . . . . . . . . Damage Inflicted 46628 | 10 594 170 1584 143 4170 1026 2241 310 2694 1128 104 1922 2260 228 75 563 . 919 2063 8481 1392 14551 Guns 39220 | . 594 170 1566 116 4100 908 2198 310 2632 1128 104 933 1827 204 . 563 . 905 2063 8481 1392 9026 Cannons . | . . . . . . . . . . . . . . . . . . . . . . . Explosions 7028 | . . . . . . 118 . . . . . 989 433 . . . . . . . . 5488 Melee . | . . . . . . . . . . . . . . . . . . . . . . . Ramming 380 | 10 . . 18 27 70 . 43 . 62 . . . . 24 75 . . 14 . . . 37 Kinetic 33648 | . 215 170 20 . 3433 908 2198 310 2632 1128 104 933 1827 204 . 563 . 905 2063 8211 1267 6557 Thermal 5255 | . 332 . 1546 116 667 . . . . . . . . . . . . . . . 125 2469 Explosive 6039 | . . . . . . 118 . . . . . . 433 . . . . . . . . 5488 Electromagnetic 1306 | . 47 . . . . . . . . . . 989 . . . . . . . 270 . . Impact . | . . . . . . . . . . . . . . . . . . . . . . . Slashing . | . . . . . . . . . . . . . . . . . . . . . . . Piercing . | . . . . . . . . . . . . . . . . . . . . . . . Highest Corruption 35 | . . . 2 2 4 3 4 . . . . 21 1 . . 1 1 4 1 25 10 35 Average Corruption 5 | . . . 2 2 4 2 3 . . . . 4 1 . . 1 1 4 1 8 10 12 Corruption Purged 1 | . . . . . . . . . . . . . 1 . . . . . . . . . Corruption Blocked . | . . . . . . . . . . . . . . . . . . . . . . . Effects 223 | . . . 7 11 26 10 15 . . . . 27 8 . . 4 . . 6 45 1 63 Message Errors 57 | . . . 1 4 7 1 3 . . . . 9 4 . . . . . 4 9 1 14 Matter Fused 47 | . . . 1 3 8 3 3 . . . . 6 1 . . 3 . . 1 10 . 8 Heat Flow Errors 18 | . . . 1 1 6 . 2 . . . . 2 . . . . . . . 2 . 4 Energy Discharges 16 | . . . . . . 1 2 . . . . 3 . . . 1 . . . 3 . 6 Parts Rejected 6 | . . . . . 1 1 . . . . . . 1 . . . . . . 1 . 2 Parts Fused 3 | . . . . . . 1 . . . . . . . . . . . . . 1 . 1 Data Loss (minor) 26 | . . . 4 2 . . 2 . . . . 5 . . . . . . 1 6 . 6 Data Loss (major) 11 | . . . . . 1 . 2 . . . . 1 1 . . . . . . 3 . 3 Misfires 7 | . . . . . . 2 1 . . . . 1 1 . . . . . . 1 . 1 Alerts 8 | . . . . 1 2 . . . . . . . . . . . . . . 2 . 3 Misdirections 4 | . . . . . . . . . . . . . . . . . . . . . . 4 Weapon Failures 20 | . . . . . 1 1 . . . . . . . . . . . . . 7 . 11 Overload Shots . | . . . . . . . . . . . . . . . . . . . . . . . Overflow Damage 162 | . . . 1 . . . . . . . . 26 8 . . . . . . . . 127 Projectiles . | . . . . . . . . . . . . . . . . . . . . . . . Explosions 161 | . . . . . . . . . . . . 26 8 . . . . . . . . 127 Melee 1 | . . . 1 . . . . . . . . . . . . . . . . . . . Knockbacks 3 | . . . . . . . . . 3 . . . . . . . . . . . . . Impact 3 | . . . . . . . . . 3 . . . . . . . . . . . . . Kinetic . | . . . . . . . . . . . . . . . . . . . . . . . Secondary . | . . . . . . . . . . . . . . . . . . . . . . . Self-Inflicted Damage 632 | . . . . . . . . . . . . 74 83 . . . . 14 . . . 461 Shots 16 | . . . . . . . . . . . . 1 1 . . . . . . . . 14 Rammed 23 | 2 . . 2 2 3 . 1 . 3 . . . . 1 7 . . . . . . 2 Targets Rammed 34 | 2 . . 3 4 5 . 2 . 3 . . . . 1 12 . . . . . . 2 Kicked . | . . . . . . . . . . . . . . . . . . . . . . . Crushed 11 | . . . 1 2 2 . 1 . . . . . . . 5 . . . . . . . Highest Temperature 487 | . 152 13 174 206 452 377 357 84 391 401 23 156 120 62 . 108 . 156 336 373 306 487 Average Temperature 95 | . 49 9 48 97 92 115 132 37 115 143 12 28 32 34 . 43 . 67 134 107 77 93 Received Heat Transfer 4110 | . 186 93 297 30 780 63 204 12 290 4 18 57 102 . . . 33 . 137 441 41 1322 Effects 27 | . . . . . 6 2 3 . 2 3 . . . . . . . . 5 . . 6 Shutdowns 7 | . . . . . 1 1 . . 1 2 . . . . . . . . . . . 2 Energy Bleed 4 | . . . . . . 1 1 . . 1 . . . . . . . . 1 . . . Interference 8 | . . . . . 2 . 2 . . . . . . . . . . . 4 . . . Matter Decay 3 | . . . . . . . . . 1 . . . . . . . . . . . . 2 Short Circuit 2 | . . . . . 1 . . . . . . . . . . . . . . . . 1 Damage (minor) 1 | . . . . . . . . . . . . . . . . . . . . . . 1 Damage (major) 2 | . . . . . 2 . . . . . . . . . . . . . . . . . Siege Activations 44 | . . . . . . . . . . . . . 4 1 . 1 . 2 6 10 2 18 Total Turns 744 | . . . . . . . . . . . . . 49 7 . 17 . 51 96 151 18 355 Longest Duration 65 | . . . . . . . . . . . . . 21 7 . 17 . 31 37 34 14 65 Robots Corrupted 5 | . . . 1 . . . . . . . . 4 . . . . . . . . . . Combat Hostiles . | . . . . . . . . . . . . . . . . . . . . . . . Parts Fried 13 | . . . 2 . . . 1 . . . . 7 1 . . . . . . 2 . . Impact Corruptions 2 | . . . 1 . . . . . . . . . . . . . . . . . . 1 Robots Melted 1 | . . . . . 1 . . . . . . . . . . . . . . . . . Combat Hostiles 1 | . . . . . 1 . . . . . . . . . . . . . . . . . Parts Melted 22 | . . . 6 . 7 . 1 . 1 . . . . . . . . . . 3 . 4 Heat Transferred 9630 | . 750 . 3589 259 1517 . . . . . . . . . . . . . . . 148 3367 Parts Sabotaged . | . . . . . . . . . . . . . . . . . . . . . . . Parts Stolen . | . . . . . . . . . . . . . . . . . . . . . . . Parts Stripped . | . . . . . . . . . . . . . . . . . . . . . . . Power Chain Reactions . | . . . . . . . . . . . . . . . . . . . . . . . Alert | -11 -10 -10 -9 -9 -8 -7 -7 -6 -6 -6 -6 -6 -5 -4 -4 -4 -4 -3 -3 -3 -2 -1 ------- Run | Yrd Mat Min Mat Min Mat Fac Sto Fac Ext Cet Arc Hub Fac Fac Upp Upp War Pro Res Tes Res Acc Peak Influence 1845 | . 372 167 437 147 654 379 820 528 1128 822 489 1015 679 460 . . . . 266 870 656 1845 Initial 631 | . . 77 65 142 27 275 172 373 150 631 268 170 497 328 . . . . . 144 378 196 Average 413 | . 190 144 251 101 384 283 442 417 403 709 454 267 561 350 . . . . 79 529 446 812 Maximum Alert Level 5 | . 1 . 2 . 2 1 3 2 4 3 2 3 2 2 . . . . 1 3 2 5 Low Security (%) 19 | 100 47 100 33 100 8 24 10 . 6 . . 19 . . . . . . 84 1 . 19 Level 1 38 | . 52 . 57 . 50 75 34 59 60 . 18 79 . 81 . . . . 15 31 36 12 Level 2 32 | . . . 9 . 40 . 47 40 23 53 81 . 100 18 . . . . . 42 63 20 Level 3 6 | . . . . . . . 8 . 8 46 . 1 . . . . . . . 24 . 14 Level 4 1 | . . . . . . . . . . . . . . . . . . . . . . 22 Level 5 . | . . . . . . . . . . . . . . . . . . . . . . 11 High Security . | . . . . . . . . . . . . . . . . . . . . . . . Max Security . | . . . . . . . . . . . . . . . . . . . . . . . Squads Dispatched 87 | . . . 2 . 7 4 8 1 6 1 . 6 6 1 . . . . 12 13 3 17 Investigation 18 | . . . . . 1 . . . 4 1 . 1 1 . . . . . 7 2 1 . Extermination 17 | . . . . . . 1 2 . . . . 2 4 . . . . . . 4 . 4 Reinforcement 29 | . . . 2 . 4 . 3 1 2 . . 2 . 1 . . . . 5 2 2 5 Assault 10 | . . . . . 2 . . . . . . 1 1 . . . . . . 1 . 5 Garrison 13 | . . . . . . 3 3 . . . . . . . . . . . . 4 . 3 Intercept . | . . . . . . . . . . . . . . . . . . . . . . . Searches Triggered . | . . . . . . . . . . . . . . . . . . . . . . . Construction Impeded 7 | . . . . . 1 . . . 1 . . 1 . . . . . . . 1 . 3 Haulers Reinforced 4 | . . . . . . . 2 . . . . . . . . . . . 1 . 1 . Active Scanning Responses . | . . . . . . . . . . . . . . . . . . . . . . . Cargo Convoy Interrupts . | . . . . . . . . . . . . . . . . . . . . . . . Stealth | -11 -10 -10 -9 -9 -8 -7 -7 -6 -6 -6 -6 -6 -5 -4 -4 -4 -4 -3 -3 -3 -2 -1 --------- Run | Yrd Mat Min Mat Min Mat Fac Sto Fac Ext Cet Arc Hub Fac Fac Upp Upp War Pro Res Tes Res Acc Distress Signals 26 | . 4 . 2 . 1 . 3 . . 2 . . 1 . . . . . 4 2 5 2 Communications Jammed . | . . . . . . . . . . . . . . . . . . . . . . . Distress Signals . | . . . . . . . . . . . . . . . . . . . . . . . Times Spotted 487 | . 22 3 41 3 50 11 28 5 41 10 3 12 23 4 . 1 2 5 31 65 17 110 Peak Tracking Total 15 | . 5 2 5 3 4 3 5 1 6 5 1 2 5 3 . 1 2 2 7 6 8 15 Tactical Retreats 35 | . 3 . 2 . 1 . 3 . 5 . . . . . . . . . 2 6 2 11 Traps | -11 -10 -10 -9 -9 -8 -7 -7 -6 -6 -6 -6 -6 -5 -4 -4 -4 -4 -3 -3 -3 -2 -1 ------- Run | Yrd Mat Min Mat Min Mat Fac Sto Fac Ext Cet Arc Hub Fac Fac Upp Upp War Pro Res Tes Res Acc Traps Triggered 17 | . 1 . 1 . 1 2 4 2 . . . 3 . . . . . . . 3 . . Indirectly . | . . . . . . . . . . . . . . . . . . . . . . . Trap Hack Attempts . | . . . . . . . . . . . . . . . . . . . . . . . Triggered . | . . . . . . . . . . . . . . . . . . . . . . . Disarmed . | . . . . . . . . . . . . . . . . . . . . . . . Reprogrammed . | . . . . . . . . . . . . . . . . . . . . . . . Reused . | . . . . . . . . . . . . . . . . . . . . . . . Traps Extracted . | . . . . . . . . . . . . . . . . . . . . . . . Installed . | . . . . . . . . . . . . . . . . . . . . . . . Triggered 9 | . . . 1 . . . . . . . . . . . . . 6 2 . . . . Machines | -11 -10 -10 -9 -9 -8 -7 -7 -6 -6 -6 -6 -6 -5 -4 -4 -4 -4 -3 -3 -3 -2 -1 ---------- Run | Yrd Mat Min Mat Min Mat Fac Sto Fac Ext Cet Arc Hub Fac Fac Upp Upp War Pro Res Tes Res Acc Machines Disabled 40 | . 1 . 2 . . . . . 1 1 3 25 5 . . . . . . . . 2 Max in Single Turn 23 | . 1 . 1 . . . . . 1 1 1 23 1 . . . . . . . . 1 Garrison Access 3 | . . . . . 1 . . . . . . 1 . . . . . . . . 1 . Network Hub 2 | . . . . . . . . . . . . 2 . . . . . . . . . . Machines Repaired . | . . . . . . . . . . . . . . . . . . . . . . . Machines Dismantled . | . . . . . . . . . . . . . . . . . . . . . . . Machines Sabotaged . | . . . . . . . . . . . . . . . . . . . . . . . Overloaded Fab Kills . | . . . . . . . . . . . . . . . . . . . . . . . Hacking | -11 -10 -10 -9 -9 -8 -7 -7 -6 -6 -6 -6 -6 -5 -4 -4 -4 -4 -3 -3 -3 -2 -1 --------- Run | Yrd Mat Min Mat Min Mat Fac Sto Fac Ext Cet Arc Hub Fac Fac Upp Upp War Pro Res Tes Res Acc Machines Accessed 65 | . 1 . 4 1 8 3 2 3 10 1 . 8 4 3 1 . 3 . 3 6 2 2 Terminals 50 | . . . 4 . 5 . 2 3 10 1 . 8 3 3 1 . . . 2 6 . 2 Fabricators 1 | . . . . . . 1 . . . . . . . . . . . . . . . . Repair Stations 1 | . . . . . . . . . . . . . . . . . . . 1 . . . Recycling Units 3 | . 1 . . . . 1 . . . . . . . . . . . . . . 1 . Scanalyzers 3 | . . . . . 2 . . . . . . . 1 . . . . . . . . . Garrison Access 3 | . . . . . 1 1 . . . . . . . . . . . . . . 1 . Total Hacks 161 | . 2 . 7 1 24 5 2 9 22 2 . 18 14 9 1 . 4 . 13 18 3 7 Successful 56 | . 1 . 2 1 10 4 1 6 6 . . 4 4 3 1 . 4 . 3 5 1 . Failed 105 | . 1 . 5 . 14 1 1 3 16 2 . 14 10 6 . . . . 10 13 2 7 Catastrophic 32 | . . . 1 . 3 . . 1 4 2 . 3 6 1 . . . . 2 8 . 1 Database Lockouts . | . . . . . . . . . . . . . . . . . . . . . . . Manual 78 | . . . 8 . 8 2 1 8 4 1 . 15 5 5 . . . . 7 8 2 4 Terminals 126 | . . . 7 . 12 . 2 9 22 2 . 18 9 9 1 . . . 10 18 . 7 Fabricators 3 | . . . . . . 3 . . . . . . . . . . . . . . . . Repair Stations 3 | . . . . . . . . . . . . . . . . . . . 3 . . . Recycling Units 4 | . 2 . . . . 1 . . . . . . . . . . . . . . 1 . Scanalyzers 14 | . . . . . 9 . . . . . . . 5 . . . . . . . . . Garrison Access 6 | . . . . . 3 1 . . . . . . . . . . . . . . 2 . Terminal Hacks 29 | . . . 2 1 1 . 1 3 6 . . 2 1 1 1 . 4 . 2 4 . . Record 3 | . . . . . . . . . . . . . . . 1 . 2 . . . . . Part Schematic 1 | . . . 1 . . . . . . . . . . . . . . . . . . . Robot Analysis 3 | . . . . . 1 . . 2 . . . . . . . . . . . . . . Open Door 10 | . . . . 1 . . 1 . 6 . . . . . . . 2 . . . . . Level Access Points 1 | . . . . . . . . . . . . 1 . . . . . . . . . . Branch Access Points 2 | . . . . . . . . 1 . . . . . . . . . . 1 . . . Alert Level 2 | . . . . . . . . . . . . . . . . . . . . 2 . . Unreport Threat 1 | . . . . . . . . . . . . . . . . . . . . 1 . . Locate Traps 1 | . . . . . . . . . . . . . 1 . . . . . . . . . Registered Components 2 | . . . 1 . . . . . . . . . . . . . . . 1 . . . Zone Layout 3 | . . . . . . . . . . . . 1 . 1 . . . . . 1 . . Fabricator Hacks 1 | . . . . . . 1 . . . . . . . . . . . . . . . . Network Status 1 | . . . . . . 1 . . . . . . . . . . . . . . . . Repair Station Hacks . | . . . . . . . . . . . . . . . . . . . . . . . Recycling Unit Hacks 2 | . 1 . . . . 1 . . . . . . . . . . . . . . . . Retrieve Components 2 | . 1 . . . . 1 . . . . . . . . . . . . . . . . Scanalyzer 10 | . . . . . 7 . . . . . . . 3 . . . . . . . . . Insert Component 4 | . . . . . 3 . . . . . . . 1 . . . . . . . . . Analyze 6 | . . . . . 4 . . . . . . . 2 . . . . . . . . . Garrison Access Hacks 1 | . . . . . 1 . . . . . . . . . . . . . . . . . Seal Access 1 | . . . . . 1 . . . . . . . . . . . . . . . . . Unauthorized Hacks 13 | . . . . . 1 2 . 3 . . . 2 . 2 . . . . 1 1 1 . Terminals 10 | . . . . . 1 . . 3 . . . 2 . 2 . . . . 1 1 . . Botnet 10 | . . . . . 1 . . 3 . . . 2 . 2 . . . . 1 1 . . Fabricators 2 | . . . . . . 2 . . . . . . . . . . . . . . . . Liberate 1 | . . . . . . 1 . . . . . . . . . . . . . . . . Fabnet 1 | . . . . . . 1 . . . . . . . . . . . . . . . . Repair Stations . | . . . . . . . . . . . . . . . . . . . . . . . Recycling Units . | . . . . . . . . . . . . . . . . . . . . . . . Scanalyzers . | . . . . . . . . . . . . . . . . . . . . . . . Garrison Access 1 | . . . . . . . . . . . . . . . . . . . . . 1 . Jam 1 | . . . . . . . . . . . . . . . . . . . . . 1 . Data Cores Recovered 1 | . . . . . 1 . . . . . . . . . . . . . . . . . Used 1 | . . . . . 1 . . . . . . . . . . . . . . . . . Hacking Detections 50 | . . . 3 . 8 1 . 3 8 1 . 8 4 2 . . . . 3 6 1 2 Full Trace Events 9 | . . . . . 1 . . . 4 1 . . 1 . . . . . 1 1 . . Feedback Events . | . . . . . . . . . . . . . . . . . . . . . . . Feedback Blocked . | . . . . . . . . . . . . . . . . . . . . . . . Robot Schematics Acquired . | . . . . . . . . . . . . . . . . . . . . . . . Robots Built . | . . . . . . . . . . . . . . . . . . . . . . . Authchips . | . . . . . . . . . . . . . . . . . . . . . . . Time . | . . . . . . . . . . . . . . . . . . . . . . . Total Robot Build Rating . | . . . . . . . . . . . . . . . . . . . . . . . Part Schematics Acquired 3 | . . . 1 . 2 . . . . . . . . . . . . . . . . . Parts Built . | . . . . . . . . . . . . . . . . . . . . . . . Authchips . | . . . . . . . . . . . . . . . . . . . . . . . Time . | . . . . . . . . . . . . . . . . . . . . . . . Total Part Build Rating . | . . . . . . . . . . . . . . . . . . . . . . . Parts Repaired . | . . . . . . . . . . . . . . . . . . . . . . . Time . | . . . . . . . . . . . . . . . . . . . . . . . Parts Recycled . | . . . . . . . . . . . . . . . . . . . . . . . Recycled Matter . | . . . . . . . . . . . . . . . . . . . . . . . Retrieved Matter . | . . . . . . . . . . . . . . . . . . . . . . . Retrieved Components 2 | . . . . . . 2 . . . . . . . . . . . . . . . . Parts Scanalyzed 4 | . . . . . 3 . . . . . . . 1 . . . . . . . . . Part Schematics Acquired 2 | . . . . . 2 . . . . . . . . . . . . . . . . . Parts Damaged . | . . . . . . . . . . . . . . . . . . . . . . . Bothacking | -11 -10 -10 -9 -9 -8 -7 -7 -6 -6 -6 -6 -6 -5 -4 -4 -4 -4 -3 -3 -3 -2 -1 ------------ Run | Yrd Mat Min Mat Min Mat Fac Sto Fac Ext Cet Arc Hub Fac Fac Upp Upp War Pro Res Tes Res Acc Used RIF Installer . | . . . . . . . . . . . . . . . . . . . . . . . Robots Hacked 3 | . . . . . . . . . 1 . . . 2 . . . . . . . . . Non-combat . | . . . . . . . . . . . . . . . . . . . . . . . Combat 3 | . . . . . . . . . 1 . . . 2 . . . . . . . . . Robot Hacks Applied . | . . . . . . . . . . . . . . . . . . . . . . . Relay Couplers Released 10 | . . . . . . . . . . . . 6 . . . . . . . 4 . . Machine Destruction 2 | . . . . . . . . . . . . 2 . . . . . . . . . . Programmers 8 | . . . . . . . . . . . . 4 . . . . . . . 4 . . Fabnet Peak Effective % 3 | . . . . . . . . 3 3 3 3 3 1 . . . . . . . . . Autooverrided 3 | . . . . . . . . . 1 . . . 2 . . . . . . . . . Robots Rewired 15 | . . . . . . . . . 15 . . . . . . . . . . . . . Allies Hacked . | . . . . . . . . . . . . . . . . . . . . . . . Hacks Repelled . | . . . . . . . . . . . . . . . . . . . . . . . Allies | -11 -10 -10 -9 -9 -8 -7 -7 -6 -6 -6 -6 -6 -5 -4 -4 -4 -4 -3 -3 -3 -2 -1 -------- Run | Yrd Mat Min Mat Min Mat Fac Sto Fac Ext Cet Arc Hub Fac Fac Upp Upp War Pro Res Tes Res Acc Total Allies 51 | . . 1 . 2 . . 13 . 25 5 . . 2 . . . . . 3 . . . Largest Group 22 | . . 1 1 2 2 . 10 6 22 21 14 12 1 . . . . . 3 . . . Highest-Rated Group 1036 | . . 31 31 50 50 . 173 109 850 1036 746 488 96 . . . . . 138 . . . Highest-Rated Ally 159 | . . 31 31 31 31 . 31 29 159 159 159 96 96 . . . . . 46 . . . Total Orders . | . . . . . . . . . . . . . . . . . . . . . . . Ally Attacks 520 | . . . 11 7 39 . 60 19 178 77 38 76 3 . . . . . 12 . . . Total Damage 9525 | . . . 126 81 548 . 725 192 3397 1610 783 1630 147 . . . . . 286 . . . Kills 67 | . . . 4 1 4 . 3 . 28 9 4 13 . . . . . . 1 . . . Allies Corrupted 3 | . . . . . . . . 1 . . . 2 . . . . . . . . . . Allies Melted 1 | . . . . . . . . . . . . . . . . . . . . . 1 . Intel | -11 -10 -10 -9 -9 -8 -7 -7 -6 -6 -6 -6 -6 -5 -4 -4 -4 -4 -3 -3 -3 -2 -1 ------- Run | Yrd Mat Min Mat Min Mat Fac Sto Fac Ext Cet Arc Hub Fac Fac Upp Upp War Pro Res Tes Res Acc Robot Analysis Total 3 | . . . . . 1 . . 2 . . . . . . . . . . . . . . Derelict Logs Recovered 5 | . . 1 . 1 . . . . . . . . . . 1 2 . . . . . . Drone Launches . | . . . . . . . . . . . . . . . . . . . . . . . Drone Recoveries . | . . . . . . . . . . . . . . . . . . . . . . . Exploration | -11 -10 -10 -9 -9 -8 -7 -7 -6 -6 -6 -6 -6 -5 -4 -4 -4 -4 -3 -3 -3 -2 -1 ------------- Run | Yrd Mat Min Mat Min Mat Fac Sto Fac Ext Cet Arc Hub Fac Fac Upp Upp War Pro Res Tes Res Acc Turns Passed 22462 | 102 476 207 2178 686 2429 792 769 446 1886 767 177 1309 1568 175 543 681 678 1052 759 1743 1326 1713 Spaces Moved 11049 | 52 184 108 1162 409 1120 404 355 239 817 344 94 743 831 92 302 380 407 564 320 676 729 717 Core 117 | 1 . . . . . . . . . . . . . . . . . . . . . 116 Treads 10932 | 51 184 108 1162 409 1120 404 355 239 817 344 94 743 831 92 302 380 407 564 320 676 729 601 Legs . | . . . . . . . . . . . . . . . . . . . . . . . Wheels . | . . . . . . . . . . . . . . . . . . . . . . . Hover . | . . . . . . . . . . . . . . . . . . . . . . . Flight . | . . . . . . . . . . . . . . . . . . . . . . . Fastest Speed 50 | 50 160 160 160 160 160 162 162 162 162 162 162 160 160 166 168 168 162 162 168 163 155 50 Average Speed 163 | 157 160 160 160 160 174 167 162 162 162 162 162 161 163 166 168 168 162 166 168 185 158 139 Slowest Speed 250 | 160 160 160 160 160 243 243 162 162 162 162 162 240 166 168 168 168 168 168 250 245 163 170 Overloaded Moves . | . . . . . . . . . . . . . . . . . . . . . . . Propulsion Burnouts . | . . . . . . . . . . . . . . . . . . . . . . . Robots Hopped . | . . . . . . . . . . . . . . . . . . . . . . . Cave-ins Triggered . | . . . . . . . . . . . . . . . . . . . . . . . Exploration Rate (%) 48 | 5 37 36 71 78 85 8 69 9 87 78 83 60 18 4 62 48 68 71 9 73 24 24 Regions Visited 22 Branch Regions 12 Pre-discovered Areas 1 | . . 1 . . . . . . . . . . . . . . . . . . . . Known Exits Taken 16 | . . . . . . 1 1 1 1 1 1 1 1 1 1 1 1 1 1 1 1 . Unknown Exits Taken 6 | 1 1 1 1 1 1 . . . . . . . . . . . . . . . . . Scrap Searched 11 | . . 1 . 1 . . . . . . . . . . 3 3 . 3 . . . . Spaces Dug 22 | . . . . . . . . . . . . 1 9 . . . . 11 1 . . . Terrain Destroyed 787 | . . . . . . 5 . . 47 1 . 275 47 1 . 14 . 54 6 24 7 306 Melee . | . . . . . . . . . . . . . . . . . . . . . . . Projectile 154 | . . . . . . . . . 1 1 . 2 25 1 . 14 . 54 2 17 6 31 AOE 620 | . . . . . . 5 . . 46 . . 273 22 . . . . . . . . 274 Terrain Rammed 1 | . . . . . . . . . . . . . . . . . . 1 . . . . Walls Destroyed . | . . . . . . . . . . . . . . . . . . . . . . . Machines Disabled . | . . . . . . . . . . . . . . . . . . . . . . . Actions | -11 -10 -10 -9 -9 -8 -7 -7 -6 -6 -6 -6 -6 -5 -4 -4 -4 -4 -3 -3 -3 -2 -1 --------- Run | Yrd Mat Min Mat Min Mat Fac Sto Fac Ext Cet Arc Hub Fac Fac Upp Upp War Pro Res Tes Res Acc Total 13858 | 70 277 121 1325 427 1372 480 482 289 1287 509 112 797 983 107 327 412 422 627 479 955 886 1112 Wait 1022 | . 27 . 30 4 40 15 44 25 107 103 11 11 79 5 2 23 12 25 99 147 67 146 Move 11028 | 52 183 107 1161 408 1119 403 354 238 816 343 93 742 830 91 301 379 406 563 319 675 728 717 Hop . | . . . . . . . . . . . . . . . . . . . . . . . Pick Up 179 | 9 6 . 18 1 25 6 4 3 9 9 1 2 11 1 2 1 . 3 13 5 30 20 Fast Attach 31 | 4 1 . 3 . 5 2 . 2 1 1 . . 1 . . . . . . 2 2 7 Attach 104 | 2 1 1 1 2 12 2 3 2 5 1 . 5 5 3 . . . 1 4 17 8 29 Detach 13 | . . . . 2 2 . . . . . . . 2 . . . . . . . 5 2 Swap 152 | 1 4 . 10 . 14 12 4 5 17 10 2 10 15 3 7 . 4 7 6 3 6 12 Drop 138 | 1 4 1 18 . 19 5 5 4 15 12 1 . 9 . 1 1 . 2 5 1 24 10 Fire 915 | . 51 12 81 6 131 35 66 10 75 30 4 27 31 3 . 7 . 25 33 105 16 167 Melee . | . . . . . . . . . . . . . . . . . . . . . . . Ram 1 | . . . . . . . . . . . . . . . . . . 1 . . . . Kick . | . . . . . . . . . . . . . . . . . . . . . . . Crush 33 | 1 . . 3 4 5 . 2 . 3 . . . . 1 12 . . . . . . 2 Escape Stasis . | . . . . . . . . . . . . . . . . . . . . . . . Rewire 242 | . . . . . . . . . 239 . . . . . 2 1 . . . . . . Trap . | . . . . . . . . . . . . . . . . . . . . . . . Miscellaneous . | . . . . . . . . . . . . . . . . . . . . . . . Route ------- -11/Scrapyard -10/Materials -10/Mines -9/Materials (discovered 4 exits: *Mat x2 / *Min x2) -9/Mines (discovered 2 exits: *Mat / [*Exi]) -8/Materials (discovered 2 exits: *Fac x2) -7/Factory -7/Storage -6/Factory (discovered 4 exits: Low x2 / *Ext x2) -6/Extension (discovered 2 exits: *Fac / *Cet) -6/Cetus (discovered 2 exits: *Fac / *Arc) -6/Archives (discovered 2 exits: *Hub x2) -6/Hub_04(d) (discovered 4 exits: *Fac x4) -5/Factory -4/Factory -4/Upper Caves -4/Upper Caves -4/Warlord -3/Proximity Caves -3/Research (discovered 2 exits: *Tes x2) -3/Testing -2/Research -1/Access History --------- Turn | Location | Event 20 | -11/Scrapyard | Discovered new exit (range 15) 103 | -11/Scrapyard | Entered Materials 310 | -10/Materials | Build established: Mutant 529 | -10/Materials | Discovered new exit (range 16) 579 | -10/Materials | Entered Mines 612 | -10/Mines | Learned location of Recycling (-7) 768 | -10/Mines | Discovered new exit (range 12) 773 | -10/Mines | Received a Mining Laser from a helpful Derelict 786 | -10/Mines | Entered Materials 786 | -9/Materials | Accompanied by 1 ally 786 | -9/Materials | Evolved 2 slots: Propulsion x1, Utility x1 991 | -9/Materials | Discovered new exit (range 5) 1256 | -9/Materials | Build established: Scavenger-Mutant 1332 | -9/Materials | Discovered new exit (range 15) 1516 | -9/Materials | Discovered new exit (range 15) 1555 | -9/Materials | Discovered new exit (range 14) 2964 | -9/Materials | Entered Mines 3059 | -9/Mines | Deemed a non-threat by the Exiles lab entrance 3060 | -9/Mines | Discovered new exit (range 5) 3184 | -9/Mines | Learned Materials terminal intel 3499 | -9/Mines | Discovered new exit (range 13) 3565 | -9/Mines | Found the Drone Emporium 3572 | -9/Mines | Found Prototype Device 3587 | -9/Mines | Identified Decoy Drone Bay 3650 | -9/Mines | Entered Materials 3650 | -8/Materials | Accompanied by 2 allies 3650 | -8/Materials | Evolved 2 slots: Propulsion x1, Weapon x1 3651 | -8/Materials | Loaded intel: 12 terminal locations 3655 | -8/Materials | Led the pair of lost Derelicts to an unsafe place 4078 | -8/Materials | Discovered new exit (range 6) 4234 | -8/Materials | Build established: Scavenger-Tank 4454 | -8/Materials | Discovered new exit (range 4) 4669 | -8/Materials | Build established: Tank 5260 | -8/Materials | Found Powered Armor 5265 | -8/Materials | Found Powered Armor 5275 | -8/Materials | Found Powered Armor 5650 | -8/Materials | First assault squad dispatched 6079 | -8/Materials | Entered Factory 6079 | -7/Factory | Evolved 2 slots: Power x1, Utility x1 6143 | -7/Factory | Discovered new exit (range 11) 6176 | -7/Factory | Identified exit to Storage 6529 | -7/Factory | Build established: Scavenger-Skirmisher 6664 | -7/Factory | Garrison activated, responded to threat 6871 | -7/Factory | Entered Storage 6893 | -7/Storage | Allied Derelicts emerged from ambush trap array 7105 | -7/Storage | Lost 3 allies 7108 | -7/Storage | Build established: Scavenger-Gunner 7226 | -7/Storage | Assisted by bots powering up and referring to "LRC-V3" 7311 | -7/Storage | Garrison activated, responded to threat 7531 | -7/Storage | Build established: Commander-Gunner 7616 | -7/Storage | Discovered new exit (range 15) 7638 | -7/Storage | Identified exit to Factory 7640 | -7/Storage | Entered Factory 7640 | -6/Factory | Accompanied by 6 allies 7640 | -6/Factory | Evolved 2 slots: Propulsion x1, Utility x1 7958 | -6/Factory | Build established: Scavenger-Skirmisher 7984 | -6/Factory | Identified exit to Lower Caves 7984 | -6/Factory | Identified exit to Extension 8086 | -6/Factory | Entered Extension 8086 | -6/Extension | Accompanied by 4 allies 8439 | -6/Extension | Build established: Scavenger-Tank 8598 | -6/Extension | Rescued A7 8677 | -6/Extension | Rescued a captive Derelict 8966 | -6/Extension | Rescued a captive Derelict 8966 | -6/Extension | Rescued a captive Derelict 9249 | -6/Extension | Spotted B-75 Beast 9256 | -6/Extension | Allies destroyed B-75 Beast 9267 | -6/Extension | Spotted B-75 Beast 9277 | -6/Extension | Allies destroyed B-75 Beast 9382 | -6/Extension | Rescued a captive Derelict 9394 | -6/Extension | Rescued a captive Derelict 9472 | -6/Extension | Rescued a captive Derelict 9473 | -6/Extension | Rescued a captive Derelict 9801 | -6/Extension | Rescued a captive Derelict 9821 | -6/Extension | Build established: Commander-Tank 9843 | -6/Extension | Disrupted transfer network 9884 | -6/Extension | Discovered new exit (range 10) 9885 | -6/Extension | Discovered new exit (range 6) 9910 | -6/Extension | Identified exit to Cetus 9967 | -6/Extension | Identified exit to Factory 9972 | -6/Extension | Entered Cetus 9972 | -6/Cetus | Accompanied by 21 allies (A7) 9977 | -6/Cetus | Acquired a Cetus Manufacturing Module code from A7 9997 | -6/Cetus | Spotted Cetus Guard 9997 | -6/Cetus | Spotted Cetus Guard 10001 | -6/Cetus | Spotted Cetus Guard 10014 | -6/Cetus | Destroyed Cetus Guard 10017 | -6/Cetus | Destroyed Cetus Guard 10019 | -6/Cetus | Destroyed Cetus Guard 10041 | -6/Cetus | Lost 6 allies 10104 | -6/Cetus | Started Cetus Manufacturing Module 10129 | -6/Cetus | Manufactured an Enhanced Grunt 10154 | -6/Cetus | Manufactured an Enhanced Grunt 10179 | -6/Cetus | Manufactured an Enhanced Grunt 10204 | -6/Cetus | Manufactured an Enhanced Grunt 10229 | -6/Cetus | Manufactured an Enhanced Grunt 10315 | -6/Cetus | Discovered new exit (range 15) 10360 | -6/Cetus | Spotted Cetus Guard 10360 | -6/Cetus | Spotted Cetus Guard 10368 | -6/Cetus | Spotted Cetus Guard 10368 | -6/Cetus | Spotted Cetus Guard 10370 | -6/Cetus | Destroyed Cetus Guard 10377 | -6/Cetus | Allies destroyed Cetus Guard 10390 | -6/Cetus | Allies destroyed Cetus Guard 10391 | -6/Cetus | Allies destroyed Cetus Guard 10419 | -6/Cetus | Lost 5 allies 10579 | -6/Cetus | Escorted A7 to Cetus Mainframe 10646 | -6/Cetus | Discovered exit to Factory (range 15) 10654 | -6/Cetus | Met Revision 17 10711 | -6/Cetus | Build established: Scavenger-Gunner 10722 | -6/Cetus | Security sweep announced 10730 | -6/Cetus | Identified exit to Archives 10739 | -6/Cetus | Entered Archives 10739 | -6/Archives | Accompanied by 14 allies (A7) 10744 | -6/Archives | Received a hacking code to weaken MAIN.C 10778 | -6/Archives | Found Prototype Device 10778 | -6/Archives | Identified Exp. Thermal Shield 10794 | -6/Archives | Discovered new exit (range 16) 10864 | -6/Archives | Discovered new exit (range 15) 10903 | -6/Archives | Identified exit to Hub_04(d) 10916 | -6/Archives | Entered Hub_04(d) 10916 | -6/Hub_04(d) | Accompanied by 12 allies 11229 | -6/Hub_04(d) | Build established: Scavenger-Skirmisher 11242 | -6/Hub_04(d) | Discovered exit to Factory (range 16) 11295 | -6/Hub_04(d) | Lost 3 allies 12202 | -6/Hub_04(d) | Network Hub disabled 12202 | -6/Hub_04(d) | Network Hub disabled 12213 | -6/Hub_04(d) | System corruption reached 10% 12225 | -6/Hub_04(d) | Entered Factory 12225 | -5/Factory | Accompanied by 1 ally 12225 | -5/Factory | Evolved 2 slots: Propulsion x1, Weapon x1 13125 | -5/Factory | First assault squad dispatched 13221 | -5/Factory | Discovered new exit (range 5) 13227 | -5/Factory | Identified exit to Factory 13479 | -5/Factory | Local machine network offline 13566 | -5/Factory | Build established: Scavenger-Gunner 13793 | -5/Factory | Entered another Factory area 13793 | -4/Factory | Evolved 2 slots: Utility x2 13926 | -4/Factory | Discovered new exit (range 16) 13967 | -4/Factory | Identified exit to Upper Caves 13968 | -4/Factory | Entered Upper Caves 14165 | -4/Upper Caves | Encountered a Warlord checkpoint 14176 | -4/Upper Caves | Learned Research security intel 14270 | -4/Upper Caves | Build established: Scavenger-Skirmisher 14491 | -4/Upper Caves | Discovered new exit (range 12) 14508 | -4/Upper Caves | Identified exit to Upper Caves 14511 | -4/Upper Caves | Entered another Upper Caves area 14895 | -4/Upper Caves | Learned location of 1 exit from Research 14955 | -4/Upper Caves | Found DCF Scrap (13 items) 15108 | -4/Upper Caves | Learned 8 Research zone layouts 15186 | -4/Upper Caves | Discovered new exit (range 5) 15191 | -4/Upper Caves | Identified exit to Warlord 15192 | -4/Upper Caves | Entered Warlord 15248 | -4/Warlord | System corruption cleaned by Quarantine Array 15558 | -4/Warlord | Visited the Vortex Lab 15571 | -4/Warlord | Warlord's base attacked by MAIN.C 15687 | -4/Warlord | Met Warlord 15814 | -4/Warlord | Opened side exit 15857 | -4/Warlord | Discovered new exit (range 9) 15869 | -4/Warlord | Identified exit to Proximity Caves 15870 | -4/Warlord | Entered Proximity Caves 16662 | -3/Proximity Caves | Spotted B-86 Titan 16858 | -3/Proximity Caves | Discovered new exit (range 12) 16871 | -3/Proximity Caves | Identified exit to Research 16922 | -3/Proximity Caves | Entered Research 16922 | -3/Research | Evolved 2 slots: Utility x1, Weapon x1 16923 | -3/Research | Identified exit to Testing 17122 | -3/Research | Revision forces began assault on 0b10 17187 | -3/Research | Met up with Revision 17++ 17274 | -3/Research | Lost 3 allies 17380 | -3/Research | Build established: Scavenger-Tank 17622 | -3/Research | Research terminal network offline 17681 | -3/Research | Entered Testing 17782 | -3/Testing | Build established: Scavenger-Skirmisher 18064 | -3/Testing | Destroyed 7 combat bots 18165 | -3/Testing | Garrison activated, responded to threat 18317 | -3/Testing | Garrison activated, responded to threat 18596 | -3/Testing | Spotted PH-NEFY6HP1G0 18607 | -3/Testing | Build established: Scavenger-Tank 18711 | -3/Testing | First assault squad dispatched 18718 | -3/Testing | System corruption reached 10% 18803 | -3/Testing | Lost 5 parts (1p1n1u2w) 18999 | -3/Testing | Spotted Striker 19280 | -3/Testing | Lost 3 parts (2p1n) 19361 | -3/Testing | Lost 3 parts (1n1u1w) 19400 | -3/Testing | Discovered new exit (range 15) 19422 | -3/Testing | Identified exit to Research 19424 | -3/Testing | Entered Research 19424 | -2/Research | Warlord forces began assault on 0b10 19424 | -2/Research | Evolved 2 slots: Power x1, Utility x1 19534 | -2/Research | Research machine network offline 19727 | -2/Research | Borebot progress halted 19832 | -2/Research | Borebot progress halted 19843 | -2/Research | Borebot progress halted 20271 | -2/Research | Met up with Warlord 20275 | -2/Research | Met DD-05H 20436 | -2/Research | Spotted Striker 20437 | -2/Research | Spotted Striker 20473 | -2/Research | Destroyed Striker 20523 | -2/Research | Discovered new exit (range 14) 20543 | -2/Research | Identified exit to Access 20750 | -2/Research | System corruption reached 10% 20750 | -2/Research | Entered Access 20750 | -1/Access | Evolved 2 slots: Utility x1, Weapon x1 21037 | -1/Access | Build established: Scavenger-Executioner 21327 | -1/Access | Destroyed 7 combat bots 21705 | -1/Access | Destroyed 9 combat bots 21761 | -1/Access | Lost 15 parts (3p1n5u6w) 21781 | -1/Access | First assault squad dispatched 21869 | -1/Access | System corruption reached 10% 22041 | -1/Access | Lost 9 parts (2p1n3u3w) 22155 | -1/Access | Garrison activated, responded to threat 22231 | -1/Access | Lost 6 parts (1p2n1u2w) 22333 | -1/Access | Core integrity fell below 50% 22345 | -1/Access | System corruption reached 30% 22367 | -1/Access | Lost 5 parts (1p2n2w) 22382 | -1/Access | Destroyed 9 combat bots 22402 | -1/Access | Released all parts (6) 22431 | -1/Access | Lost 3 parts (1p1n1w) 22449 | -1/Access | Core integrity fell below 20% 22462 | -1/Access | Spotted B-99 Colossus 22463 | -1/Access | Spotted B-99 Colossus 22463 | -1/Access | Destroyed by S-43 Plague with Heavy Machine Gun Last Messages --------------- 22402_ Released Imp. Armor Integrity Analyzer. 22402_ Released Adv. Heat Sink. 22402_ Dropped Med. Treads. 22403_ Dropped Spk. Medium Treads. 22403_ Acquired Enh. Armored Heavy Treads. 22404_ Penetrated by Slug. 22405_ Dropped Prototype Slashing Weapon. 22405_ Acquired Huge Storage Unit. 22410_ Penetrated by Slug. 22410_ Slug penetrates Wall. 22417_ System corrupted: Matter fused (-6). 22419_ Penetrated by Slug. 22422_ Slug penetrates Wall. 22434_ System corrupted: Component data lost. 22434_ Slug penetrates Wall. 22451_ :VBJII/S2QI>PZ#8>WRFPQ XKP5XKC 22462_ Slug penetrates Door. 22462_ Penetrated by Slug. 22462_ Slug penetrates Wall. [Achievement: Punisher] Map ----- +----------------------------------------------------+ | ?????????????????????????????? # | | ???????????????????????????????########### # | | ????????????????????????????????# ??# #? | | ?????????????????????????????????! ?# #? | | ????????????????????????????????? " ?# #?? | | ????????????????????????????????? """ # #?? | | ????????????????????????????????# """ # #??? | | ????????????????????????????????# " + #??? | | ????????????????????????????????#! ! # #??? | | ????????????????????????????????# # #??? | | ????????????????????????????????# ?# #??? | | ????????????????????????????????########?# #??? | | ?????????????????????????????????????????# #??? | | ?????????????????????????????????????????# #??? | | ?????????????????????????????????????????# #??? | | ?????????????????????????????????????????# #??? | | ?????????????????????????????????????????# #??? | | ??????????????????????????????????######## #??? | | ??????????????????????????????????# #??? | | ??????????????????????????????????# #??? | | ??????????????????????????????????# +??? | | ??????????????????????????????????# #??? | | ??????????????????????????????????# ### #??? | | ??????????????????????????????????# #?# #??? | | ??????????" BB ###+###########;# #?# #??? | | ??????????" @ s #?# #??? | | ??????????" ss s #?# #??? | | ??????????" % s #?# #??? | | ??????????? #?? #??? | | ??????????? BB ####+############+####?? #??? | | ????????????BB ?????????????????????????? #??? | | ???????????? ???????????????????????????? #??? | | ?????????????????????????????????????????? ???? | | ??????????????????????????????????????????? ?????? | | ?????????????????????????????????????????????????? | | ?????????????????????????????????????????????????? | | ?????????????????????????????????????????????????? | | ?????????????????????????????????????????????????? | | ?????????????????????????????????????????????????? | | ?????????????????????????????????????????????????? | | ?????????????????????????????????????????????????? | | ?????????????????????????????????????????????????? | | ?????????????????????????????????????????????????? | | ?????????????????????????????????????????????????? | | ?????????????????????????????????????????????????? | | ?????????????????????????????????????????????????? | | ?????????????????????????????????????????????????? | | ?????????????????????????????????????????????????? | | ?????????????????????????????????????????????????? | | ?????????????????????????????????????????????????? | +----------------------------------------------------+ Best States ------------- Heat Dissipation 90 Energy Generation 61 Energy Capacity 665 Matter Stores 300 Matter Capacity 300 Sight Range 16 Robot Scan Range 16 Terrain Scan Density 10 Power Amplification 40 Armor Coverage 900 Resistance: KI 30 Resistance: TH 30 Core Shielding 20 Weapon Cycling 20 Evasion (%) 50 Armor Integrity Analysis 40 Recoil Reduction 6 Particle Charging 25 Salvage Targeting 2 Item Schematics ----------------- Huge Storage Unit | -9/Materials | Hacked Powered Armor | -8/Materials | Scanalyzed Mni. Grenade Launcher | -8/Materials | Scanalyzed Robot Schematics ------------------ None Fabricated ------------ Nothing Alien Tech Used ----------------- None Achievements -------------- Punisher Treasure Hunter Turtlemind Challenges ------------ None Game ------ Seed SensorWarlordFocus Manual? 0 Play Time 03:16:59 Cumulative 139.4 hours Start 2025.01.15 @ 18:53:46 End 2025.01.16 @ 00:34:10 Sessions 3 Manual Loads 0 Difficulty Rogue Special Mode None Game No. 118 Rogue 118 Adventurer 0 Explorer 0 Win Type - Total 3 Types 1/0/1/1/0/0/0/0/0 Lore% 67 Gallery% 56 Achievement% 55 Wizard Run 0 Options --------- Layout 1 ASCII 0 Keyboard 1 Movement Arrows Keybinds 0 Fullscreen 2 Font 24/Smallcaps Map View 50x35 Zoom Use 0% Tactical HUD 1 Map Filters NONE Filters NONE Steam 1 RUN: 8b679156-5cb2-4de9-83c4-2362791600bc